bitfinex-derivatives/quotes_SOLF0:USTF0_20220108
["timestamp","ask_amount","ask_price","bid_price","bid_amount"]
[1641660857102,1.766,141.54,141.48,51.18909732]
[1641660857702,1.766,141.54,141.47,27.66479]
[1641660857900,13.85090958,141.55,141.47,27.66479]
[1641660857901,7.06863646,141.55,141.47,27.66479]
[1641660858101,7.06863646,141.55,141.5,4.0]
[1641660858302,7.06863646,141.55,141.52,4.0]
[1641660859002,27.66479,141.58,141.47,27.66479]
[1641660859202,27.66479,141.58,141.55,4.0]
[1641660859403,7.0666384,141.59,141.49,4.0]
[1641660859703,7.0666384,141.59,141.52,4.0]
[1641660859903,7.0666384,141.59,141.47,33.42879]
[1641660859904,12.71676097,141.59,141.47,44.08839904]
[1641660860206,7.06963591,141.53,141.47,16.42360904]
[1641660860407,27.66479,141.49,141.47,16.42360904]
[1641660860604,27.66479,141.49,141.39,96.69849]
[1641660860805,33.31905957,141.49,141.4,4.0]
[1641660861003,33.31905957,141.49,141.41,4.0]
[1641660861504,7.07338638,141.45,141.39,65.0337]
[1641660862107,12.72944403,141.45,141.37,69.7931]
[1641660862409,7.07563858,141.41,141.35,27.66479]
[1641660862608,7.07563858,141.41,141.33,96.98159]
[1641660863008,7.07563858,141.41,141.33,65.3168]
[1641660863206,7.07563858,141.41,141.3,65.7019]
[1641660863207,7.07563858,141.41,141.3,69.7019]
[1641660863408,8.84363858,141.41,141.3,69.7019]
[1641660863607,5.65836785,141.39,141.3,65.7019]
[1641660863807,5.65836785,141.39,141.34,4.0]
[1641660864208,7.07563858,141.41,141.32,4.0]
[1641660864409,7.07563858,141.41,141.34,27.66479]
[1641660864608,7.07563858,141.41,141.37,4.0]
[1641660865310,6.78792088,141.43,141.34,31.66479]
[1641660865510,6.78792088,141.43,141.34,27.66479]
[1641660866409,7.07613926,141.41,141.33,4.0]
[1641660866709,5.65798606,141.4,141.32,27.66479]
[1641660866911,1.768,141.39,141.32,27.66479]
[1641660867108,7.42598606,141.4,141.32,31.66479]
[1641660867309,7.42598606,141.4,141.35,4.0]
[1641660867508,5.65798606,141.4,141.34,4.0]
[1641660867708,7.07613926,141.41,141.34,4.0]
[1641660867911,8.84413926,141.41,141.38,4.0]
[1641660868110,7.07613926,141.41,141.38,4.0]
[1641660868510,7.07613926,141.41,141.35,27.66479]
[1641660869112,27.66479,141.42,141.35,27.66479]
[1641660869310,33.32208194,141.42,141.35,27.66479]
[1641660869510,1.768,141.41,141.35,27.66479]
[1641660869711,33.32208194,141.42,141.35,27.66479]
[1641660870711,33.32208194,141.42,141.35,31.66479]
[1641660870911,33.32208194,141.42,141.35,27.66479]
[1641660871712,33.32208194,141.42,141.35,31.66479]
[1641660872313,33.32208194,141.42,141.36,4.0]
[1641660872713,33.32208194,141.42,141.35,27.66479]
[1641660872914,33.32208194,141.42,141.4,4.0]
[1641660873118,5.65729194,141.42,141.35,27.66479]
[1641660873316,5.65729194,141.42,141.36,4.0]
[1641660873522,5.6563708,141.44,141.41,4.0]
[1641660873722,5.6563708,141.44,141.36,63.7874]
[1641660873919,32.36034709,141.45,141.36,63.7874]
[1641660874521,32.36034709,141.45,141.4,4.0]
[1641660874721,7.07413696,141.45,141.41,4.0]
[1641660878327,7.07413696,141.45,141.39,27.66479]
[1641660878624,6.7858735,141.48,141.42,4.0]
[1641660878825,6.7858735,141.48,141.39,27.66479]
[1641660879025,1.766,141.47,141.39,27.66479]
[1641660879224,1.766,141.47,141.42,4.0]
[1641660879225,5.65540755,141.46,141.42,4.0]
[1641660879724,5.65540755,141.46,141.39,27.66479]
[1641660879924,5.65540755,141.46,141.39,31.66479]
[1641660880124,5.65710413,141.42,141.36,133.6003]
[1641660880324,5.65710413,141.42,141.35,27.66479]
[1641660880625,5.65710413,141.42,141.35,31.66479]
[1641660881027,7.42510413,141.42,141.35,27.66479]
[1641660881626,7.42510413,141.42,141.36,4.0]
[1641660881826,14.50049239,141.42,141.36,4.0]
[1641660882026,5.6579981,141.4,141.35,4.0]
[1641660882431,5.6579981,141.4,141.32,133.4635]
[1641660882727,5.65840191,141.39,141.32,133.4635]
[1641660882928,5.65920349,141.37,141.33,4.0]
[1641660883228,5.65997721,141.35,141.28,39.31948821]
[1641660883528,5.66070674,141.33,141.28,39.31948821]
[1641660883727,1.768,141.32,141.28,39.31948821]
[1641660883928,5.66070674,141.33,141.31,4.0]
[1641660884129,5.65938587,141.36,141.32,4.0]
[1641660884829,5.65938587,141.36,141.3,27.66479]
[1641660885027,5.65938587,141.36,141.34,4.0]
[1641660885630,34.74143001,141.4,141.34,4.0]
[1641660885930,1.768,141.39,141.34,4.0]
[1641660886231,34.74143001,141.4,141.31,14.89220472]
[1641660886232,7.07664001,141.4,141.36,4.0]
[1641660887431,9.91403707,141.42,141.37,4.0]
[1641660887631,1.768,141.42,141.35,4.0]
[1641660887930,1.768,141.46,141.41,4.0]
[1641660888131,19.65863597,141.48,141.41,4.0]
[1641660888333,1.766,141.48,141.47,4.0]
[1641660888532,1.766,141.48,141.38,4.0]
[1641660888732,11.53657269,141.49,141.38,4.0]
[1641660888931,1.766,141.49,141.41,4.0]
[1641660889131,1.766,141.53,141.48,4.0]
[1641660889335,7.06938602,141.54,141.41,65.7826]
[1641660889533,7.06938602,141.54,141.46,4.0]
[1641660889734,8.83538602,141.54,141.42,67.8501]
[1641660889935,8.83538602,141.54,141.48,4.0]
[1641660890134,8.83538602,141.54,141.43,4.0]
[1641660890534,8.83538602,141.54,141.49,4.0]
[1641660890735,7.06938602,141.54,141.44,14.89220472]
[1641660890936,5.65254511,141.53,141.44,42.55699472]
[1641660891136,5.65254511,141.53,141.49,4.0]
[1641660892636,5.65254511,141.53,141.46,14.89220472]
[1641660893036,5.65254511,141.53,141.49,4.0]
[1641660893436,8.83388706,141.57,141.52,4.0]
[1641660893639,1.766,141.59,141.56,4.0]
[1641660893838,5.64857828,141.63,141.58,4.0]
[1641660894037,39.31948821,141.64,141.59,4.0]
[1641660894236,21.66966978,141.65,141.6,4.0]
[1641660894436,21.66966978,141.65,141.53,4.0]
[1641660894636,21.66966978,141.65,141.5,75.97134241]
[1641660894838,1.764,141.64,141.57,4.0]
[1641660895439,5.64865121,141.63,141.54,27.66479]
[1641660895840,5.64865121,141.63,141.6,4.0]
[1641660896139,1.764,141.62,141.55,4.0]
[1641660896341,5.64865121,141.63,141.55,4.0]
[1641660896539,29.42879,141.65,141.55,4.0]
[1641660896739,27.66479,141.65,141.55,4.0]
[1641660896941,27.66479,141.65,141.64,4.0]
[1641660897141,1.764,141.67,141.64,4.0]
[1641660897341,14.89220472,141.7,141.66,4.0]
[1641660897540,14.89220472,141.7,141.61,72.0914]
[1641660897740,1.764,141.72,141.61,4.0]
[1641660898040,1.764,141.72,141.67,4.0]
[1641660898540,9.89232732,141.73,141.67,4.0]
[1641660899143,9.89232732,141.73,141.66,4.0]
[1641660899342,9.89232732,141.73,141.63,69.702]
[1641660900043,9.89232732,141.73,141.64,4.0]
[1641660900243,9.89232732,141.73,141.66,4.0]
[1641660901145,9.89232732,141.73,141.63,97.36679]
[1641660901347,9.89232732,141.73,141.63,101.36679]
[1641660901553,5.64658084,141.68,141.58,27.66479]
[1641660901747,1.764,141.67,141.58,27.66479]
[1641660901948,5.64818267,141.64,141.55,195.0538]
[1641660902148,7.41218267,141.64,141.55,195.0538]
[1641660902347,7.06588942,141.62,141.55,127.501]
[1641660902547,1.764,141.61,141.57,4.0]
[1641660902750,1.764,141.62,141.57,4.0]
[1641660903347,1.764,141.62,141.61,4.0]
[1641660903548,7.06439193,141.65,141.59,4.0]
[1641660903746,7.06439193,141.65,141.62,4.0]
[1641660903951,7.06439193,141.65,141.56,4.0]
[1641660903952,7.06439193,141.65,141.6,4.0]
[1641660904249,7.06439193,141.65,141.55,63.7632]
[1641660904250,7.06439193,141.65,141.55,67.7632]
[1641660904449,1.764,141.69,141.64,4.0]
[1641660904648,8.82440174,141.73,141.65,4.0]
[1641660905049,8.82440174,141.73,141.61,4.0]
[1641660905250,8.82440174,141.73,141.64,27.66479]
[1641660905551,8.82440174,141.73,141.67,4.0]
[1641660905750,8.82440174,141.73,141.64,27.66479]
[1641660906251,8.82440174,141.73,141.66,4.0]
[1641660906450,8.82440174,141.73,141.65,4.0]
[1641660906650,8.82440174,141.73,141.59,137.2469]
[1641660907150,8.82440174,141.73,141.65,4.0]
[1641660907350,8.82440174,141.73,141.64,4.0]
[1641660907550,8.82440174,141.73,141.61,4.0]
[1641660907750,5.64689219,141.68,141.61,4.0]
[1641660907950,5.64689219,141.68,141.59,27.66479]
[1641660908151,5.64767441,141.66,141.59,27.66479]
[1641660908551,5.64888827,141.63,141.56,68.9324]
[1641660908752,5.64963453,141.61,141.54,4.0]
[1641660909355,33.31442453,141.61,141.54,4.0]
[1641660909553,33.31442453,141.61,141.51,27.66479]
[1641660909754,33.31442453,141.61,141.56,4.0]
[1641660910253,5.64963453,141.61,141.56,4.0]
[1641660910457,5.64963453,141.61,141.57,4.0]
[1641660910653,1.764,141.64,141.59,4.0]
[1641660911054,1.764,141.64,141.53,4.0]
[1641660911256,1.764,141.64,141.58,4.0]
[1641660911554,1.764,141.64,141.6,4.0]
[1641660912356,1.764,141.64,141.55,31.66479]
[1641660912357,1.764,141.64,141.58,4.0]
[1641660912656,6.77702457,141.66,141.58,4.0]
[1641660912856,6.77702457,141.66,141.63,4.0]
[1641660913056,8.82689508,141.68,141.55,27.66479]
[1641660913256,7.06289508,141.68,141.63,4.0]
[1641660913656,34.44036994,141.69,141.63,4.0]
[1641660913955,34.44036994,141.69,141.61,27.66479]
[1641660914157,34.44036994,141.69,141.65,4.0]
[1641660915156,34.44036994,141.69,141.61,27.66479]
[1641660915356,5.6468558,141.68,141.61,27.66479]
[1641660915557,1.764,141.67,141.59,63.7328]
[1641660915756,5.64886574,141.63,141.57,63.773]
[1641660915956,12.71425593,141.63,141.53,18.89220472]
[1641660916156,1.764,141.62,141.52,81.50100472]
[1641660916356,12.71425593,141.63,141.52,81.50100472]
[1641660916755,12.71425593,141.63,141.52,85.50100472]
[1641660916956,5.64964563,141.61,141.52,81.50100472]
[1641660917158,5.65043916,141.59,141.51,64.8502]
[1641660917355,36.49867706,141.58,141.5,4.0]
[1641660917557,5.65158006,141.56,141.5,4.0]
[1641660917757,1.766,141.55,141.5,4.0]
[1641660917957,1.766,141.55,141.46,177.80659472]
[1641660918358,1.766,141.55,141.49,4.0]
[1641660919460,36.50017602,141.55,141.49,4.0]
[1641660919661,36.50017602,141.55,141.44,46.55699472]
[1641660919662,39.50680332,141.53,141.44,42.55699472]
[1641660919860,7.07213579,141.5,141.44,14.89220472]
[1641660920159,5.65547443,141.46,141.43,14.89220472]
[1641660920962,5.65547443,141.46,141.41,4.0]
[1641660921260,7.42011236,141.49,141.42,4.0]
[1641660921458,35.08490236,141.49,141.39,92.61799]
[1641660921659,35.08490236,141.49,141.39,64.9532]
[1641660921960,5.65566799,141.46,141.39,64.9532]
[1641660922160,5.65684491,141.43,141.38,14.89220472]
[1641660922361,1.766,141.42,141.38,14.89220472]
[1641660922560,7.07638963,141.41,141.38,14.89220472]
[1641660922759,1.768,141.4,141.38,14.89220472]
[1641660923059,1.768,141.4,141.34,39.31948821]
[1641660923260,5.65838029,141.39,141.31,14.89220472]
[1641660923460,27.66479,141.35,141.31,14.89220472]
[1641660923860,1.768,141.34,141.31,14.89220472]
[1641660924360,1.768,141.34,141.28,27.66479]
[1641660924561,29.43279,141.35,141.29,4.0]
[1641660924965,29.43279,141.35,141.32,4.0]
[1641660925264,5.65953579,141.36,141.32,4.0]
[1641660925463,5.65953579,141.36,141.28,27.66479]
[1641660925764,5.65953579,141.36,141.3,4.0]
[1641660926064,5.65908882,141.37,141.28,27.66479]
[1641660926263,7.42708882,141.37,141.29,4.0]
[1641660926863,7.42708882,141.37,141.28,27.66479]
[1641660927066,5.65908882,141.37,141.29,4.0]
[1641660927467,27.66479,141.36,141.29,4.0]
[1641660927864,27.66479,141.36,141.28,27.66479]
[1641660928066,5.66062702,141.33,141.26,14.89220472]
[1641660928267,5.66222481,141.29,141.24,42.55699472]
[1641660928868,5.66257158,141.28,141.24,42.55699472]
[1641660929172,5.66222481,141.29,141.24,42.55699472]
[1641660929173,1.768,141.31,141.27,4.0]
[1641660929368,1.768,141.34,141.25,4.0]
[1641660929569,15.63928857,141.35,141.32,4.0]
[1641660929768,8.55989315,141.35,141.32,4.0]
[1641660929970,6.79189315,141.35,141.33,4.0]
[1641660930368,1.768,141.38,141.34,4.0]
[1641660930569,8.14755599,141.4,141.37,4.0]
[1641660930770,8.14609723,141.42,141.31,7.07363656]
[1641660931169,8.14609723,141.42,141.36,4.0]
[1641660931370,8.14609723,141.42,141.33,27.66479]
[1641660931568,5.6577525,141.4,141.32,137.4995]
[1641660931769,5.65936704,141.36,141.27,4.0]
[1641660932270,5.66098702,141.32,141.25,63.4932]
[1641660932573,5.66098702,141.32,141.28,4.0]
[1641660932768,5.66098702,141.32,141.25,63.4932]
[1641660932968,5.66098702,141.32,141.26,4.0]
[1641660933269,5.66098702,141.32,141.28,4.0]
[1641660933669,5.66098702,141.32,141.25,63.4932]
[1641660933869,5.66098702,141.32,141.27,4.0]
[1641660934369,27.05159916,141.34,141.25,63.4932]
[1641660934570,1.769,141.33,141.28,4.0]
[1641660935571,1.769,141.33,141.25,63.4932]
[1641660935771,1.769,141.33,141.28,4.0]
[1641660935970,1.769,141.33,141.25,63.4932]
[1641660936171,1.769,141.33,141.28,4.0]
[1641660936374,1.769,141.33,141.25,63.4932]
[1641660936575,1.769,141.33,141.28,4.0]
[1641660937678,1.769,141.33,141.25,63.4932]
[1641660937679,1.769,141.33,141.27,4.0]
[1641660937876,28.81959916,141.34,141.27,4.0]
[1641660938177,28.81959916,141.34,141.25,63.4932]
[1641660938376,28.81959916,141.34,141.28,4.0]
[1641660938777,28.81959916,141.34,141.26,4.0]
[1641660938977,28.81959916,141.34,141.25,63.4932]
[1641660939379,28.81959916,141.34,141.25,67.4932]
[1641660939580,28.81959916,141.34,141.26,4.0]
[1641660939779,28.81959916,141.34,141.25,63.4932]
[1641660939780,5.66101578,141.32,141.25,63.4932]
[1641660939979,5.66101578,141.32,141.28,4.0]
[1641660940183,1.768,141.34,141.31,4.0]
[1641660940380,1.768,141.37,141.33,4.0]
[1641660940581,8.14609723,141.42,141.36,4.0]
[1641660940780,8.14609723,141.42,141.38,4.0]
[1641660940980,8.14609723,141.42,141.32,64.1829]
[1641660941581,29.43279,141.41,141.32,64.1829]
[1641660941781,27.07689041,141.4,141.32,64.1829]
[1641660942081,6.79055974,141.38,141.28,67.453]
[1641660942282,1.768,141.37,141.29,4.0]
[1641660942482,1.768,141.37,141.31,4.0]
[1641660942685,8.55855974,141.38,141.31,4.0]
[1641660943483,36.22334974,141.38,141.31,4.0]
[1641660943685,36.22334974,141.38,141.28,67.453]
[1641660943885,6.79115284,141.37,141.28,67.453]
[1641660944086,1.768,141.36,141.28,67.453]
[1641660944285,1.768,141.36,141.29,4.0]
[1641660944487,1.768,141.36,141.28,67.453]
[1641660944886,1.768,141.4,141.35,4.0]
[1641660945085,41.5302275,141.41,141.31,4.0]
[1641660945086,41.5302275,141.41,141.36,4.0]
[1641660945290,6.78904787,141.41,141.36,4.0]
[1641660945487,1.768,141.44,141.38,4.0]
[1641660945687,1.768,141.44,141.37,27.66479]
[1641660945889,7.07438718,141.45,141.37,27.66479]
[1641660945890,8.84038718,141.45,141.37,27.66479]
[1641660946287,8.84038718,141.45,141.39,4.0]
[1641660946487,7.07438718,141.45,141.39,4.0]
[1641660946690,7.07438718,141.45,141.37,27.66479]
[1641660947595,7.07438718,141.45,141.4,4.0]
[1641660948491,7.07438718,141.45,141.37,27.66479]
[1641660948692,27.66479,141.46,141.41,4.0]
[1641660950091,27.66479,141.46,141.37,27.66479]
[1641660950293,27.66479,141.46,141.4,4.0]
[1641660950592,1.766,141.45,141.4,4.0]
[1641660951792,5.65523271,141.47,141.44,4.0]
[1641660951993,1.766,141.49,141.37,42.55699472]
[1641660952193,8.14156688,141.5,141.48,4.0]
[1641660952393,14.89220472,141.53,141.48,4.0]
[1641660952594,7.41839287,141.54,141.49,4.0]
[1641660952595,5.65239287,141.54,141.49,4.0]
[1641660952795,5.65239287,141.54,141.45,69.4045]
[1641660952993,5.65353427,141.51,141.45,65.4045]
[1641660953393,5.65353427,141.51,141.44,4.0]
[1641660953793,5.65475754,141.48,141.43,160.53359]
[1641660953994,1.766,141.47,141.43,27.66479]
[1641660954194,5.65475754,141.48,141.43,31.66479]
[1641660954594,5.65475754,141.48,141.43,27.66479]
[1641660954994,5.65475754,141.48,141.39,7.06963591]
[1641660954995,5.65475754,141.48,141.42,4.0]
[1641660955397,5.65575349,141.45,141.41,4.0]
[1641660956196,5.65575349,141.45,141.39,4.0]
[1641660956395,5.65575349,141.45,141.41,4.0]
[1641660956995,5.65575349,141.45,141.42,4.0]
[1641660957396,5.65575349,141.45,141.41,4.0]
[1641660957796,5.65575349,141.45,141.42,4.0]
[1641660958397,5.65575349,141.45,141.38,136.9751]
[1641660958596,5.65575349,141.45,141.42,4.0]
[1641660958798,5.65457796,141.48,141.4,4.0]
[1641660958999,5.65457796,141.48,141.43,4.0]
[1641660959398,5.65457796,141.48,141.39,26.16743512]
[1641660959599,5.65457796,141.48,141.4,27.66479]
[1641660959999,5.65457796,141.48,141.44,4.0]
[1641660960199,5.65457796,141.48,141.4,31.66479]
[1641660960801,29.43079,141.5,141.4,27.66479]
[1641660961001,27.66479,141.5,141.41,4.0]
[1641660961203,27.66479,141.5,141.46,4.0]
[1641660961602,27.66479,141.5,141.44,27.66479]
[1641660962003,27.66479,141.5,141.46,4.0]
[1641660962302,12.72770501,141.48,141.4,29.43079]
[1641660962502,1.766,141.47,141.39,14.89220472]
[1641660962702,5.65601314,141.45,141.39,14.89220472]
[1641660962904,5.65720107,141.42,141.39,14.89220472]
[1641660963106,5.65720107,141.42,141.36,68.5827]
[1641660963304,1.768,141.41,141.35,64.8192]
[1641660963705,1.768,141.41,141.34,14.89220472]
[1641660964707,1.768,141.41,141.35,4.0]
[1641660965510,1.768,141.41,141.37,4.0]
[1641660965714,7.42520107,141.42,141.4,4.0]
[1641660965911,5.65720107,141.42,141.34,4.0]
[1641660966110,5.65720107,141.42,141.39,4.0]
[1641660966511,5.65720107,141.42,141.34,4.0]
[1641660966512,5.65720107,141.42,141.33,70.3273]
[1641660966711,5.65720107,141.42,141.38,4.0]
[1641660967113,5.65720107,141.42,141.39,4.0]
[1641660967913,1.768,141.44,141.41,4.0]
[1641660968113,27.66479,141.47,141.43,4.0]
[1641660968513,27.66479,141.47,141.39,4.0]
[1641660969119,1.766,141.51,141.46,8.0]
[1641660969319,6.74539534,141.52,141.49,4.0]
[1641660969516,6.74539534,141.52,141.43,4.0]
[1641660969716,4.97939534,141.52,141.45,27.66479]
[1641660969917,7.07063565,141.53,141.45,27.66479]
[1641660970119,7.07063565,141.53,141.48,4.0]
[1641660970317,1.766,141.52,141.46,4.0]
[1641660970518,1.766,141.52,141.44,65.2152]
[1641660970718,1.766,141.52,141.44,69.2152]
[1641660971320,1.766,141.52,141.44,65.2152]
[1641660971519,1.766,141.52,141.46,4.0]
[1641660971718,29.43079,141.52,141.44,65.2152]
[1641660971918,34.41018534,141.52,141.45,4.0]
[1641660972420,34.41018534,141.52,141.42,27.66479]
[1641660972619,4.97939534,141.51,141.46,4.0]
[1641660973423,29.43079,141.52,141.46,4.0]
[1641660973424,34.41018534,141.52,141.46,4.0]
[1641660974423,5.65374948,141.5,141.46,4.0]
[1641660974721,5.65374948,141.5,141.42,27.66479]
[1641660975322,5.65374948,141.5,141.45,4.0]
[1641660976024,5.65374948,141.5,141.41,14.89220472]
[1641660976223,5.65476345,141.48,141.43,6.99867481]
[1641660976927,5.65476345,141.48,141.43,4.0]
[1641660977124,5.65521988,141.47,141.43,4.0]
[1641660978226,5.65521988,141.47,141.4,86.85530472]
[1641660978426,10.63339602,141.5,141.46,4.0]
[1641660978626,10.63339602,141.5,141.44,2.99915672]
[1641660978826,10.63339602,141.5,141.48,4.0]
[1641660979025,10.63339602,141.5,141.44,2.99915672]
[1641660979425,5.65400068,141.5,141.43,18.89220472]
[1641660979925,5.65450406,141.49,141.43,14.89220472]
[1641660980126,5.65463782,141.48,141.43,14.89220472]
[1641660980527,5.65463782,141.48,141.44,2.99897982]
[1641660980825,5.65463782,141.48,141.45,4.0]
[1641660981330,5.65463782,141.48,141.43,2.99897982]
[1641660981729,29.43079,141.51,141.47,4.0]
[1641660981932,27.66479,141.51,141.47,4.0]
[1641660982129,19.18250182,141.52,141.47,4.0]
[1641660982331,19.18250182,141.52,141.43,17.89118454]
[1641660982531,19.18250182,141.52,141.49,4.0]
[1641660983133,14.20310648,141.52,141.49,4.0]
[1641660983733,7.41930658,141.52,141.51,4.0]
[1641660983934,4.97939534,141.53,141.51,4.0]
[1641660984733,8.13889401,141.55,141.51,4.0]
[1641660985235,8.13889401,141.55,141.53,4.0]
[1641660985434,14.89220472,141.59,141.54,8.0]
[1641660985634,11.71073453,141.66,141.46,109.72719464]
[1641660985635,14.89220472,141.6,141.58,59.32958]
[1641660985834,18.97669293,141.63,141.59,4.0]
[1641660986035,17.21169293,141.63,141.58,55.32958]
[1641660986438,11.71073453,141.66,141.58,55.32958]
[1641660986636,11.71073453,141.66,141.61,4.0]
[1641660987037,11.71073453,141.66,141.58,55.32958]
[1641660987237,5.64800217,141.65,141.54,1.764]
[1641660987436,1.764,141.64,141.52,67.7188]
[1641660987837,29.42879,141.64,141.56,4.0]
[1641660988037,5.64916601,141.62,141.56,4.0]
[1641660988438,5.64958668,141.61,141.52,71.7188]
[1641660988637,7.41358668,141.61,141.48,69.9522]
[1641660988839,5.6515975,141.56,141.49,4.0]
[1641660989139,5.6515975,141.56,141.48,69.9522]
[1641660989537,5.65017133,141.59,141.53,4.0]
[1641660989738,1.766,141.58,141.55,4.0]
[1641660990036,6.77875272,141.62,141.51,4.0]
[1641660990037,1.764,141.6,141.51,4.0]
[1641660990239,6.77875272,141.62,141.5,38.72868291]
[1641660990438,6.77875272,141.62,141.55,4.0]
[1641660990839,6.77875272,141.62,141.56,4.0]
[1641660991139,6.77875272,141.62,141.52,4.0]
[1641660991339,6.77875272,141.62,141.53,4.0]
[1641660991542,1.764,141.65,141.61,4.0]
[1641660991745,11.71073453,141.66,141.6,27.66479]
[1641660992442,11.71073453,141.66,141.62,4.0]
[1641660992642,11.71073453,141.66,141.6,27.66479]
[1641660993644,1.764,141.69,141.6,27.66479]
[1641660993844,7.41051109,141.69,141.64,4.0]
[1641660994544,7.41051109,141.69,141.6,95.77159]
[1641660994746,7.41051109,141.69,141.61,4.0]
[1641660994948,5.64651109,141.69,141.6,91.77159]
[1641660995144,5.64651109,141.69,141.61,4.0]
[1641660995345,5.64651109,141.69,141.63,4.0]
[1641660995544,7.40894138,141.72,141.68,1.6104863]
[1641660995744,5.64494138,141.72,141.68,1.6104863]
[1641660995945,5.64494138,141.72,141.67,27.66479]
[1641660996145,5.64494138,141.72,141.66,1.6104863]
[1641660997144,5.64494138,141.72,141.67,1.6104863]
[1641660997344,5.64494138,141.72,141.65,27.66479]
[1641660997543,5.64494138,141.72,141.68,1.6104863]
[1641660997746,5.64494138,141.72,141.65,27.66479]
[1641660997947,5.64494138,141.72,141.69,1.6104863]
[1641660998347,7.06239627,141.7,141.61,1.764]
[1641660998552,7.06414241,141.66,141.57,1.6104863]
[1641660998746,9.80137035,141.65,141.54,63.9324]
[1641660998951,9.45565276,141.62,141.55,1.6104863]
[1641660999148,15.10473588,141.62,141.53,1.6104863]
[1641660999350,7.06738754,141.59,141.53,1.6104863]
[1641660999550,12.71766536,141.59,141.56,1.6104863]
[1641660999849,1.764,141.62,141.58,56.9400663]
[1641661000048,1.764,141.67,141.61,1.6104863]
[1641661000252,35.79584446,141.68,141.63,1.6104863]
[1641661000449,8.13105446,141.68,141.6,4.0]
[1641661000749,8.13105446,141.68,141.64,1.6104863]
[1641661000950,6.7747272,141.71,141.6,7.05965408]
[1641661001150,6.7747272,141.71,141.66,1.6104863]
[1641661001451,6.7747272,141.71,141.69,1.6104863]
[1641661001650,4.95415644,141.72,141.7,1.6104863]
[1641661001850,4.95415644,141.72,141.71,1.6104863]
[1641661002054,4.95415644,141.72,141.68,27.66479]
[1641661002253,4.95415644,141.76,141.69,1.6104863]
[1641661002452,4.95415644,141.76,141.69,4.0]
[1641661002652,4.95415644,141.76,141.72,1.6104863]
[1641661003052,40.023561,141.78,141.72,1.6104863]
[1641661003252,1.762,141.77,141.72,1.6104863]
[1641661003852,1.762,141.77,141.68,34.72021033]
[1641661004054,32.61894644,141.78,141.75,1.6104863]
[1641661004252,27.66479,141.78,141.75,1.6104863]
[1641661004952,27.66479,141.78,141.68,38.72021033]
[1641661005156,27.66479,141.78,141.73,1.6104863]
[1641661005357,27.66479,141.78,141.68,27.66479]
[1641661005554,27.66479,141.78,141.75,1.6104863]
[1641661006355,27.66479,141.78,141.73,27.66479]
[1641661006555,27.66479,141.78,141.75,1.6104863]
[1641661007159,27.66479,141.78,141.73,27.66479]
[1641661007358,27.66479,141.78,141.75,1.6104863]
[1641661007957,1.762,141.82,141.75,1.6104863]
[1641661008159,1.762,141.82,141.73,31.66479]
[1641661008358,1.762,141.82,141.73,27.66479]
[1641661008558,7.4028982,141.83,141.73,27.66479]
[1641661008757,7.4028982,141.83,141.74,1.6104863]
[1641661009257,7.4028982,141.83,141.73,27.66479]
[1641661009859,5.64126411,141.82,141.75,1.6104863]
[1641661010059,1.762,141.81,141.75,1.6104863]
[1641661010260,1.762,141.81,141.73,27.66479]
[1641661010460,1.762,141.81,141.75,1.6104863]
[1641661010860,1.762,141.81,141.77,1.6104863]
[1641661011061,5.64131033,141.82,141.73,27.66479]
[1641661011261,5.64131033,141.82,141.75,1.6104863]
[1641661011660,5.64131033,141.82,141.76,1.6104863]
[1641661011861,5.64131033,141.82,141.73,27.66479]
[1641661012863,5.64131033,141.82,141.77,1.6104863]
[1641661013261,5.64131033,141.82,141.73,27.66479]